fUST/lending_fUST_20250717
["ID","MTS","AMOUNT","RATE_DAILY","PERIOD"]
[372567296,1752685853338,-1200.41,0.00020273,2]
[372567297,1752685853347,-460.0,0.00020273,2]
[372567298,1752685853357,-4675.14,0.00020273,2]
[372567299,1752685853370,-524.72,0.00020273,2]
[372567300,1752685853379,-460.0,0.00020273,2]
[372567301,1752685853388,-1850.24,0.00020273,2]
[372567302,1752685853396,-460.0,0.00020273,2]
[372567303,1752685853404,-922.03,0.00020273,2]
[372567304,1752685853413,-460.0,0.00020273,2]
[372567305,1752685853422,-460.0,0.00020273,2]
[372567306,1752685853430,-2753.5,0.00020273,2]
[372567307,1752685853440,-881.48,0.00020273,2]
[372567308,1752685853449,-694.7,0.00020273,2]
[372567309,1752685853458,-460.0,0.00020273,2]
[372567310,1752685853466,-460.0,0.00020273,2]
[372567311,1752685853475,-460.0,0.00020273,2]
[372567312,1752685853484,-530.9,0.00020273,2]
[372567313,1752685853492,-460.0,0.00020273,2]
[372567314,1752685853500,-460.0,0.00020273,2]
[372567315,1752685853509,-460.0,0.00020273,2]
[372567316,1752685853518,-503.06829235,0.00020273,2]
[372567317,1752685853526,-460.0,0.00020273,2]
[372567318,1752685853535,-460.0,0.00020273,2]
[372567319,1752685853543,-613.81,0.00020273,2]
[372567320,1752685853551,-641.21,0.00020273,2]
[372567321,1752685853559,-460.0,0.00020273,2]
[372567322,1752685853567,-577.21,0.00020273,2]
[372567323,1752685853576,-460.0,0.00020273,2]
[372567324,1752685853585,-460.0,0.00020273,2]
[372567325,1752685853593,-460.0,0.00020273,2]
[372567326,1752685853602,-460.0,0.00020273,2]
[372567327,1752685853611,-460.0,0.00020273,2]
[372567328,1752685853619,-460.0,0.00020273,2]
[372567329,1752685853628,-1400.36,0.00020273,2]
[372567330,1752685853636,-460.0,0.00020273,2]
[372567331,1752685853644,-476.08,0.00020273,2]
[372567332,1752685853653,-460.0,0.00020273,2]
[372567333,1752685853661,-563.13,0.00020273,2]
[372567334,1752685853669,-671.66,0.00020273,2]
[372567335,1752685853678,-2382.71,0.00020273,2]
[372567336,1752685853686,-460.0,0.00020273,2]
[372567337,1752685853694,-460.0,0.00020273,2]
[372567338,1752685853703,-731.92,0.00020273,2]
[372567339,1752685853711,-460.0,0.00020273,2]
[372567340,1752685853720,-460.0,0.00020273,2]
[372567341,1752685853728,-3088.72,0.00020273,2]
[372567342,1752685853737,-460.0,0.00020273,2]
[372567343,1752685853744,-460.0,0.00020273,2]
[372567344,1752685853752,-5916.31313928,0.00020348,3]
[372567345,1752685853760,-500.0,0.00020494,2]
[372567346,1752685853768,-511.8062021,0.00020507,2]
[372567347,1752685853776,-500.0,0.00020507,2]
[372567348,1752685853784,-500.0,0.00020507,2]
[372567349,1752685853795,-500.0,0.00020507,2]
[372567350,1752685853805,-460.0,0.00020547,2]
[372567351,1752685853814,-460.0,0.00020547,2]
[372567352,1752685853823,-460.0,0.00020547,2]
[372567353,1752685853833,-460.0,0.00020547,2]
[372567354,1752685853843,-500.0,0.00020547,2]
[372567355,1752685853854,-500.0,0.00020547,2]
[372567356,1752685853863,-500.0,0.00020547,2]
[372567357,1752685853873,-500.0,0.00020547,2]
[372567358,1752685853882,-500.0,0.00020547,2]
[372567359,1752685853891,-500.0,0.00020547,2]
[372567360,1752685853902,-460.0,0.00020547,2]
[372567361,1752685853911,-460.0,0.00020547,2]
[372567362,1752685853921,-460.0,0.00020547,2]
[372567363,1752685853930,-460.0,0.00020547,2]
[372567364,1752685853941,-460.0,0.00020547,2]
[372567365,1752685853950,-460.0,0.00020547,2]
[372567366,1752685853961,-460.0,0.00020547,2]
[372567367,1752685853970,-460.0,0.00020547,2]
[372567368,1752685853980,-460.0,0.00020547,2]
[372567369,1752685853989,-460.0,0.00020547,2]
[372567370,1752685853998,-561.84344684,0.00020547,2]
[372567371,1752685854010,-460.0,0.00020547,2]
[372567372,1752685854019,-460.0,0.00020547,2]
[372567373,1752685854030,-460.0,0.00020547,2]
[372567374,1752685854039,-460.0,0.00020547,2]
[372567375,1752685854049,-460.0,0.00020547,2]
[372567376,1752685854058,-460.0,0.00020547,2]
[372567377,1752685854068,-460.0,0.00020547,2]
[372567378,1752685854078,-460.0,0.00020547,2]
[372567379,1752685854087,-460.0,0.00020547,2]
[372567380,1752685854096,-460.0,0.00020547,2]
[372567381,1752685854106,-460.0,0.00020547,2]
[372567382,1752685854116,-460.0,0.00020547,2]
[372567383,1752685854125,-460.0,0.00020547,2]
[372567384,1752685854135,-460.0,0.00020547,2]
[372567385,1752685854144,-593.36,0.00020547,2]
[372567386,1752685854154,-460.0,0.00020547,2]
[372567387,1752685854163,-460.0,0.00020547,2]
[372567388,1752685854173,-460.0,0.00020547,2]
[372567389,1752685854182,-460.0,0.00020547,2]
[372567390,1752685854192,-460.0,0.00020547,2]
[372567391,1752685854201,-460.0,0.00020547,2]
[372567392,1752685854211,-460.0,0.00020547,2]
[372567393,1752685854220,-460.0,0.00020547,2]
[372567394,1752685854229,-460.0,0.00020547,2]
[372567395,1752685854239,-460.0,0.00020547,2]
[372567396,1752685854248,-460.0,0.00020547,2]
[372567397,1752685854257,-579.17,0.00020547,2]
[372567398,1752685854267,-460.0,0.00020547,2]
[372567399,1752685854277,-460.0,0.00020547,2]
[372567400,1752685854286,-460.0,0.00020547,2]
[372567401,1752685854297,-460.0,0.00020547,2]
[372567402,1752685854306,-460.0,0.00020547,2]
[372567403,1752685854315,-657.27,0.00020547,2]
[372567404,1752685854325,-460.0,0.00020547,2]
[372567405,1752685854334,-460.0,0.00020547,2]
[372567406,1752685854343,-460.0,0.00020547,2]
[372567407,1752685854353,-460.0,0.00020547,2]
[372567408,1752685854364,-460.0,0.00020547,2]
[372567409,1752685854375,-460.0,0.00020547,2]
[372567410,1752685854384,-729.43,0.00020547,2]
[372567411,1752685854394,-460.0,0.00020547,2]
[372567412,1752685854403,-460.0,0.00020547,2]
[372567413,1752685854413,-460.0,0.00020547,2]
[372567414,1752685854423,-460.0,0.00020547,2]
[372567415,1752685854432,-460.0,0.00020547,2]
[372567416,1752685854442,-460.0,0.00020547,2]
[372567417,1752685854452,-460.0,0.00020547,2]
[372567418,1752685854461,-1666.88,0.00020547,2]
[372567419,1752685854470,-1697.15,0.00020547,2]
[372567420,1752685854480,-460.0,0.00020547,2]
[372567421,1752685854489,-1357.78,0.00020547,2]
[372567422,1752685854499,-460.0,0.00020547,2]
[372567423,1752685854630,-586.34,0.00020547,2]
[372567424,1752685854640,-755.09,0.00020547,2]
[372567425,1752685854650,-460.0,0.00020547,2]
[372567426,1752685854660,-460.0,0.00020547,2]
[372567427,1752685854672,-760.93,0.00020547,2]
[372567428,1752685854681,-460.0,0.00020547,2]
[372567429,1752685854691,-460.0,0.00020547,2]
[372567430,1752685854700,-587.6,0.00020547,2]
[372567431,1752685854710,-460.0,0.00020547,2]
[372567432,1752685854720,-2012.57,0.00020547,2]
[372567433,1752685854730,-5099.27,0.00020547,2]
[372567434,1752685854739,-1833.17,0.00020547,2]
[372567435,1752685854749,-460.0,0.00020547,2]
[372567436,1752685854758,-537.99,0.00020547,2]
[372567437,1752685854768,-460.0,0.00020547,2]
[372567438,1752685854779,-500.98645685,0.00020547,2]
[372567439,1752685854788,-460.0,0.00020547,2]
[372567440,1752685854798,-593.0,0.00020547,2]
[372567441,1752685854807,-460.0,0.00020547,2]
[372567442,1752685854817,-460.0,0.00020547,2]
[372567443,1752685854827,-460.0,0.00020547,2]
[372567444,1752685854837,-1535.14,0.00020547,2]
[372567445,1752685854846,-1021.02,0.00020547,2]
[372567446,1752685854857,-460.0,0.00020547,2]
[372567447,1752685854867,-460.0,0.00020547,2]
[372567448,1752685854877,-914.77,0.00020547,2]
[372567449,1752685854887,-460.0,0.00020547,2]
[372567450,1752685854896,-460.0,0.00020547,2]
[372567451,1752685854906,-5881.17,0.00020547,2]
[372567452,1752685854916,-460.0,0.00020547,2]
[372567453,1752685854925,-460.0,0.00020547,2]
[372567454,1752685854935,-460.0,0.00020547,2]
[372567455,1752685854945,-460.0,0.00020547,2]
[372567456,1752685854955,-460.0,0.00020547,2]
[372567457,1752685854964,-1200.41,0.00020547,2]
[372567458,1752685854974,-460.0,0.00020547,2]
[372567459,1752685854983,-4675.14,0.00020547,2]
[372567460,1752685854992,-460.0,0.00020547,2]
[372567461,1752685855002,-1850.24,0.00020547,2]
[372567462,1752685855011,-460.0,0.00020547,2]
[372567463,1752685855021,-922.03,0.00020547,2]
[372567464,1752685855030,-460.0,0.00020547,2]
[372567465,1752685855040,-460.0,0.00020547,2]
[372567466,1752685855050,-2753.5,0.00020547,2]
[372567467,1752685855061,-881.48,0.00020547,2]
[372567468,1752685855070,-694.7,0.00020547,2]
[372567469,1752685855080,-460.0,0.00020547,2]
[372567470,1752685855089,-460.0,0.00020547,2]
[372567471,1752685855099,-460.0,0.00020547,2]
[372567472,1752685855109,-530.9,0.00020547,2]
[372567473,1752685855118,-460.0,0.00020547,2]
[372567474,1752685855127,-460.0,0.00020547,2]
[372567475,1752685855137,-460.0,0.00020547,2]
[372567476,1752685855146,-460.0,0.00020547,2]
[372567477,1752685855155,-613.81,0.00020547,2]
[372567478,1752685855165,-641.21,0.00020547,2]
[372567479,1752685855174,-460.0,0.00020547,2]
[372567480,1752685855184,-577.21,0.00020547,2]
[372567481,1752685855193,-460.0,0.00020547,2]
[372567482,1752685855203,-460.0,0.00020547,2]
[372567483,1752685855212,-460.0,0.00020547,2]
[372567484,1752685855222,-460.0,0.00020547,2]
[372567485,1752685855231,-460.0,0.00020547,2]
[372567486,1752685855241,-460.0,0.00020547,2]
[372567487,1752685855250,-1400.36,0.00020547,2]
[372567488,1752685855260,-460.0,0.00020547,2]
[372567489,1752685855270,-476.08,0.00020547,2]
[372567490,1752685855279,-460.0,0.00020547,2]
[372567491,1752685855289,-563.13,0.00020547,2]
[372567492,1752685855299,-671.66,0.00020547,2]
[372567493,1752685855308,-2382.71,0.00020547,2]
[372567494,1752685855318,-460.0,0.00020547,2]
[372567495,1752685855328,-460.0,0.00020547,2]
[372567496,1752685855337,-731.92,0.00020547,2]
[372567497,1752685855347,-460.0,0.00020547,2]
[372567498,1752685855358,-460.0,0.00020547,2]
[372567499,1752685855370,-3088.72,0.00020547,2]
[372567500,1752685855380,-460.0,0.00020547,2]
[372567501,1752685855390,-460.0,0.00020547,2]
[372567502,1752685855399,-1500.0,0.00020568,2]
[372567503,1752685855409,-6259.52915524,0.0002059,3]
[372567504,1752685855420,-468.75,0.0002059,3]
[372567505,1752685855429,-5916.31313928,0.0002059,3]
[372567506,1752685855439,-160.0,0.0002059,3]
[372567507,1752685855450,-500.0,0.00020594,2]
[372567508,1752685855459,-360.0,0.00020596,2]
[372567509,1752685855469,-260.11036964,0.00020658,2]
[372567510,1752685855478,-500.0,0.00020658,2]
[372567511,1752685855487,-500.0,0.00020658,2]
[372567512,1752685855497,-500.81020057,0.00020658,2]
[372567513,1752685855507,-500.0,0.00020658,2]
[372567514,1752685855517,-500.0,0.00020658,2]
[372567515,1752685855526,-500.0,0.00020658,2]
[372567516,1752685855536,-500.0,0.00020658,2]
[372567517,1752685855546,-500.45140818,0.00020658,2]
[372567518,1752685855556,-500.0,0.00020658,2]
[372567519,1752685855565,-500.0,0.00020658,2]
[372567520,1752685855575,-500.80122548,0.00020658,2]
[372567521,1752685855585,-500.0,0.00020658,2]
[372567522,1752685855595,-500.0,0.00020658,2]
[372567523,1752685855606,-1680.0,0.00020668,2]
[372567524,1752685855616,-473.10345777,0.00020721,2]
[372567525,1752685855625,-460.0,0.00020821,2]
[372567526,1752685855635,-460.0,0.00020821,2]
[372567527,1752685855645,-460.0,0.00020821,2]
[372567528,1752685855655,-460.0,0.00020821,2]
[372567529,1752685855664,-500.0,0.00020821,2]
[372567530,1752685855674,-460.0,0.00020821,2]
[372567531,1752685855683,-460.0,0.00020821,2]
[372567532,1752685855693,-460.0,0.00020821,2]
[372567533,1752685855702,-460.0,0.00020821,2]
[372567534,1752685855712,-460.0,0.00020821,2]
[372567535,1752685855722,-460.0,0.00020821,2]
[372567536,1752685855731,-460.0,0.00020821,2]
[372567537,1752685855740,-460.0,0.00020821,2]
[372567538,1752685855750,-460.0,0.00020821,2]
[372567539,1752685855759,-460.0,0.00020821,2]
[372567540,1752685855768,-460.0,0.00020821,2]
[372567541,1752685855778,-460.0,0.00020821,2]
[372567542,1752685855788,-460.0,0.00020821,2]
[372567543,1752685855797,-460.0,0.00020821,2]
[372567544,1752685855807,-460.0,0.00020821,2]
[372567545,1752685855816,-460.0,0.00020821,2]
[372567546,1752685855826,-460.0,0.00020821,2]
[372567547,1752685855835,-460.0,0.00020821,2]
[372567548,1752685855844,-460.0,0.00020821,2]
[372567549,1752685855855,-593.36,0.00020821,2]
[372567550,1752685855864,-460.0,0.00020821,2]
[372567551,1752685855874,-460.0,0.00020821,2]
[372567552,1752685855884,-460.0,0.00020821,2]
[372567553,1752685855893,-460.0,0.00020821,2]
[372567554,1752685855903,-460.0,0.00020821,2]
[372567555,1752685855913,-460.0,0.00020821,2]
[372567556,1752685855923,-460.0,0.00020821,2]
[372567557,1752685855933,-460.0,0.00020821,2]
[372567558,1752685855942,-460.0,0.00020821,2]
[372567559,1752685855952,-460.0,0.00020821,2]
[372567560,1752685855961,-460.0,0.00020821,2]
[372567561,1752685855971,-579.17,0.00020821,2]
[372567562,1752685855981,-467.73325824,0.00020821,2]
[372567563,1752685855990,-460.0,0.00020821,2]
[372567564,1752685855999,-460.0,0.00020821,2]
[372567565,1752685856009,-460.0,0.00020821,2]
[372567566,1752685856018,-460.0,0.00020821,2]
[372567567,1752685856028,-657.27,0.00020821,2]
[372567568,1752685856037,-460.0,0.00020821,2]
[372567569,1752685856048,-460.0,0.00020821,2]
[372567570,1752685856058,-460.0,0.00020821,2]
[372567571,1752685856068,-460.0,0.00020821,2]
[372567572,1752685856078,-460.0,0.00020821,2]
[372567573,1752685856088,-729.43,0.00020821,2]
[372567574,1752685856098,-460.0,0.00020821,2]
[372567575,1752685856316,-250.21138474,0.00020821,2]
[372567576,1752685856326,-460.0,0.00020821,2]
[372567577,1752685856335,-460.0,0.00020821,2]
[372567578,1752685856345,-460.0,0.00020821,2]
[372567579,1752685856354,-460.0,0.00020821,2]
[372567580,1752685856364,-460.0,0.00020821,2]
[372567581,1752685856376,-1666.88,0.00020821,2]
[372567582,1752685856386,-1697.15,0.00020821,2]
[372567583,1752685856396,-460.0,0.00020821,2]
[372567584,1752685856406,-1357.78,0.00020821,2]
[372567585,1752685856417,-460.0,0.00020821,2]
[372567586,1752685856427,-586.34,0.00020821,2]
[372567587,1752685856437,-755.09,0.00020821,2]
[372567588,1752685856448,-460.0,0.00020821,2]
[372567589,1752685856457,-460.0,0.00020821,2]
[372567590,1752685856467,-760.93,0.00020821,2]
[372567591,1752685856478,-460.0,0.00020821,2]
[372567592,1752685856487,-460.0,0.00020821,2]
[372567593,1752685856498,-587.6,0.00020821,2]
[372567594,1752685856507,-460.0,0.00020821,2]
[372567595,1752685856517,-2012.57,0.00020821,2]
[372567596,1752685856527,-5099.27,0.00020821,2]
[372567597,1752685856537,-1833.17,0.00020821,2]
[372567598,1752685856547,-460.0,0.00020821,2]
[372567599,1752685856556,-460.0,0.00020821,2]
[372567600,1752685856565,-537.99,0.00020821,2]
[372567601,1752685856575,-460.0,0.00020821,2]
[372567602,1752685856584,-593.0,0.00020821,2]
[372567603,1752685856594,-460.0,0.00020821,2]
[372567604,1752685856603,-460.0,0.00020821,2]
[372567605,1752685856612,-1535.14,0.00020821,2]
[372567606,1752685856621,-460.0,0.00020821,2]
[372567607,1752685856632,-1021.02,0.00020821,2]
[372567608,1752685856642,-460.0,0.00020821,2]
[372567609,1752685856652,-460.0,0.00020821,2]
[372567610,1752685856661,-914.77,0.00020821,2]
[372567611,1752685856671,-460.0,0.00020821,2]
[372567612,1752685856681,-460.0,0.00020821,2]
[372567613,1752685856691,-5881.17,0.00020821,2]
[372567614,1752685856701,-460.0,0.00020821,2]
[372567615,1752685856711,-460.0,0.00020821,2]
[372567616,1752685856720,-460.0,0.00020821,2]
[372567617,1752685856730,-460.0,0.00020821,2]
[372567618,1752685856740,-1200.41,0.00020821,2]
[372567619,1752685856750,-460.0,0.00020821,2]
[372567620,1752685856759,-4675.14,0.00020821,2]
[372567621,1752685856768,-460.0,0.00020821,2]
[372567622,1752685856778,-460.0,0.00020821,2]
[372567623,1752685856788,-1850.24,0.00020821,2]
[372567624,1752685856799,-922.03,0.00020821,2]
[372567625,1752685856809,-460.0,0.00020821,2]
[372567626,1752685856818,-460.0,0.00020821,2]
[372567627,1752685856828,-2753.5,0.00020821,2]
[372567628,1752685856837,-881.48,0.00020821,2]
[372567629,1752685856847,-694.7,0.00020821,2]
[372567630,1752685856858,-460.0,0.00020821,2]
[372567631,1752685856869,-460.0,0.00020821,2]
[372567632,1752685856878,-460.0,0.00020821,2]
[372567633,1752685856888,-530.9,0.00020821,2]
[372567634,1752685856899,-460.0,0.00020821,2]
[372567635,1752685856909,-460.0,0.00020821,2]
[372567636,1752685856918,-460.0,0.00020821,2]
[372567637,1752685856928,-460.0,0.00020821,2]
[372567638,1752685856938,-613.81,0.00020821,2]
[372567639,1752685856947,-641.21,0.00020821,2]
[372567640,1752685856957,-460.0,0.00020821,2]
[372567641,1752685856967,-577.21,0.00020821,2]
[372567642,1752685856978,-460.0,0.00020821,2]
[372567643,1752685856989,-460.0,0.00020821,2]
[372567644,1752685856999,-460.0,0.00020821,2]
[372567645,1752685857009,-460.0,0.00020821,2]
[372567646,1752685857019,-460.0,0.00020821,2]
[372567647,1752685857030,-405.85128992,0.00020821,2]
[372567648,1752685857041,-1400.36,0.00020821,2]
[372567649,1752685857050,-561.69027837,0.00020821,2]
[372567650,1752685857061,-476.08,0.00020821,2]
[372567651,1752685857072,-460.0,0.00020821,2]
[372567652,1752685857082,-563.13,0.00020821,2]
[372567653,1752685857093,-671.66,0.00020821,2]
[372567654,1752685857103,-2382.71,0.00020821,2]
[372567655,1752685857113,-460.0,0.00020821,2]
[372567656,1752685857122,-460.0,0.00020821,2]
[372567657,1752685857133,-731.92,0.00020821,2]
[372567658,1752685857144,-460.0,0.00020821,2]
[372567659,1752685857154,-460.0,0.00020821,2]
[372567660,1752685857163,-3088.72,0.00020821,2]
[372567661,1752685857172,-460.0,0.00020821,2]
[372567662,1752685857183,-460.0,0.00020821,2]
[372567663,1752685857192,-5916.31313928,0.00020831,4]
[372567664,1752685857203,-8000.0,0.00020941,2]
[372567665,1752685857212,-10000.0,0.00020989,2]
[372567666,1752685857222,-500.0,0.00020993,2]
[372567667,1752685857232,-152.08269484,0.00020993,2]
[372567668,1752685857243,-500.0,0.00020993,2]
[372567669,1752685857253,-5000.0,0.00021,2]
[372567670,1752685857262,-851.947,0.00021033,2]
[372567671,1752685857272,-1000.0,0.00021055,2]
[372567672,1752685857282,-593.18124554,0.00021063,2]
[372567673,1752685857291,-500.0,0.00021063,2]
[372567674,1752685857301,-5916.31313928,0.00021072,4]
[372567675,1752685857312,-10000.0,0.00021081,2]
[372567676,1752685857322,-460.0,0.00021095,2]
[372567677,1752685857332,-460.0,0.00021095,2]
[372567678,1752685857342,-460.0,0.00021095,2]
[372567679,1752685857351,-500.0,0.00021095,2]
[372567680,1752685857363,-460.0,0.00021095,2]
[372567681,1752685857376,-534.99080827,0.00021095,2]
[372567682,1752685857385,-460.0,0.00021095,2]
[372567683,1752685857396,-460.0,0.00021095,2]
[372567684,1752685857405,-460.0,0.00021095,2]
[372567685,1752685857415,-460.0,0.00021095,2]
[372567686,1752685857424,-460.0,0.00021095,2]
[372567687,1752685857434,-460.0,0.00021095,2]
[372567688,1752685857444,-460.0,0.00021095,2]
[372567689,1752685857455,-460.0,0.00021095,2]
[372567690,1752685857465,-460.0,0.00021095,2]
[372567691,1752685857475,-460.0,0.00021095,2]
[372567692,1752685857596,-460.0,0.00021095,2]
[372567693,1752685857607,-593.36,0.00021095,2]
[372567694,1752685857616,-460.0,0.00021095,2]
[372567695,1752685857626,-460.0,0.00021095,2]
[372567696,1752685857635,-460.0,0.00021095,2]
[372567697,1752685857645,-245.16830943,0.00021095,2]
[372567698,1752685857654,-460.0,0.00021095,2]
[372567699,1752685857663,-460.0,0.00021095,2]
[372567700,1752685857673,-460.0,0.00021095,2]
[372567701,1752685857682,-460.0,0.00021095,2]
[372567702,1752685857691,-460.0,0.00021095,2]
[372567703,1752685857701,-579.17,0.00021095,2]
[372567704,1752685857710,-460.0,0.00021095,2]
[372567705,1752685857720,-460.0,0.00021095,2]
[372567706,1752685857730,-460.0,0.00021095,2]
[372567707,1752685857739,-460.0,0.00021095,2]
[372567708,1752685857748,-657.27,0.00021095,2]
[372567709,1752685857758,-460.0,0.00021095,2]
[372567710,1752685857767,-460.0,0.00021095,2]
[372567711,1752685857778,-460.0,0.00021095,2]
[372567712,1752685857787,-460.0,0.00021095,2]
[372567713,1752685857797,-460.0,0.00021095,2]
[372567714,1752685857807,-729.43,0.00021095,2]
[372567715,1752685857816,-460.0,0.00021095,2]
[372567716,1752685857826,-460.0,0.00021095,2]
[372567717,1752685857836,-460.0,0.00021095,2]
[372567718,1752685857845,-368.25,0.00021095,2]
[372567719,1752685857855,-460.0,0.00021095,2]
[372567720,1752685857865,-1666.88,0.00021095,2]
[372567721,1752685857874,-1697.15,0.00021095,2]
[372567722,1752685857883,-460.0,0.00021095,2]
[372567723,1752685857893,-1357.78,0.00021095,2]
[372567724,1752685857902,-460.0,0.00021095,2]
[372567725,1752685857911,-586.34,0.00021095,2]
[372567726,1752685857921,-755.09,0.00021095,2]
[372567727,1752685857930,-460.0,0.00021095,2]
[372567728,1752685857940,-760.93,0.00021095,2]
[372567729,1752685857950,-460.0,0.00021095,2]
[372567730,1752685857959,-460.0,0.00021095,2]
[372567731,1752685857968,-587.6,0.00021095,2]
[372567732,1752685857978,-460.0,0.00021095,2]
[372567733,1752685857987,-2012.57,0.00021095,2]
[372567734,1752685857996,-5099.27,0.00021095,2]
[372567735,1752685858006,-1833.17,0.00021095,2]
[372567736,1752685858015,-460.0,0.00021095,2]
[372567737,1752685858024,-460.0,0.00021095,2]
[372567738,1752685858033,-537.99,0.00021095,2]
[372567739,1752685858043,-593.0,0.00021095,2]
[372567740,1752685858052,-460.0,0.00021095,2]
[372567741,1752685858062,-460.0,0.00021095,2]
[372567742,1752685858071,-1535.14,0.00021095,2]
[372567743,1752685858081,-460.0,0.00021095,2]
[372567744,1752685858090,-1021.02,0.00021095,2]
[372567745,1752685858099,-460.0,0.00021095,2]
[372567746,1752685858109,-460.0,0.00021095,2]
[372567747,1752685858119,-914.77,0.00021095,2]
[372567748,1752685858128,-460.0,0.00021095,2]
[372567749,1752685858137,-460.0,0.00021095,2]
[372567750,1752685858147,-5881.17,0.00021095,2]
[372567751,1752685858156,-460.0,0.00021095,2]
[372567752,1752685858166,-460.0,0.00021095,2]
[372567753,1752685858175,-460.0,0.00021095,2]
[372567754,1752685858185,-460.0,0.00021095,2]
[372567755,1752685858195,-1200.41,0.00021095,2]
[372567756,1752685858204,-460.0,0.00021095,2]
[372567757,1752685858214,-4675.14,0.00021095,2]
[372567758,1752685858224,-460.0,0.00021095,2]
[372567759,1752685858233,-460.0,0.00021095,2]
[372567760,1752685858243,-1850.24,0.00021095,2]
[372567761,1752685858253,-922.03,0.00021095,2]
[372567762,1752685858262,-460.0,0.00021095,2]
[372567763,1752685858272,-2753.5,0.00021095,2]
[372567764,1752685858281,-881.48,0.00021095,2]
[372567765,1752685858291,-694.7,0.00021095,2]
[372567766,1752685858301,-344.73350716,0.00021095,2]
[372567767,1752685858311,-460.0,0.00021095,2]
[372567768,1752685858320,-250.78946978,0.00021095,2]
[372567769,1752685858330,-530.9,0.00021095,2]
[372567770,1752685858339,-460.0,0.00021095,2]
[372567771,1752685858349,-460.0,0.00021095,2]
[372567772,1752685858367,-460.0,0.00021095,2]
[372567773,1752685858381,-460.0,0.00021095,2]
[372567774,1752685858391,-613.81,0.00021095,2]
[372567775,1752685858401,-641.21,0.00021095,2]
[372567776,1752685858412,-460.0,0.00021095,2]
[372567777,1752685858422,-577.21,0.00021095,2]
[372567778,1752685858431,-460.0,0.00021095,2]
[372567779,1752685858441,-460.0,0.00021095,2]
[372567780,1752685858454,-460.0,0.00021095,2]
[372567781,1752685858465,-460.0,0.00021095,2]
[372567782,1752685858475,-1400.36,0.00021095,2]
[372567783,1752685858486,-476.08,0.00021095,2]
[372567784,1752685858496,-460.0,0.00021095,2]
[372567785,1752685858506,-563.13,0.00021095,2]
[372567786,1752685858515,-671.66,0.00021095,2]
[372567787,1752685858525,-2382.71,0.00021095,2]
[372567788,1752685858535,-460.0,0.00021095,2]
[372567789,1752685858545,-517.70298011,0.00021095,2]
[372567790,1752685858555,-731.92,0.00021095,2]
[372567791,1752685858565,-460.0,0.00021095,2]
[372567792,1752685858575,-460.0,0.00021095,2]
[372567793,1752685858585,-3088.72,0.00021095,2]
[372567794,1752685858594,-460.0,0.00021095,2]
[372567795,1752685858604,-160.0,0.00021116,2]